fUST/lending_fUST_20240801
["ID","MTS","AMOUNT","RATE_DAILY","PERIOD"]
[333787948,1722498666993,-502.25486603,0.00013698,2]
[333787949,1722498667018,-500.0,0.00013698,2]
[333787950,1722498667043,-500.0,0.00013698,2]
[333787951,1722498667066,-481.14099763,0.00013698,2]
[333787952,1722498667088,-500.0,0.00013698,2]
[333787953,1722498667112,-500.0,0.00013698,2]
[333787954,1722498667135,-166.92801832,0.00013698,2]
[333787955,1722498667159,-500.0,0.00013698,2]
[333787956,1722498667186,-500.0,0.00013698,2]
[333787957,1722498667212,-500.0,0.00013698,2]
[333787958,1722498667239,-500.0,0.00013698,2]
[333787959,1722498667268,-500.0,0.00013698,2]
[333787960,1722498667293,-500.0,0.00013698,2]
[333787961,1722498667323,-500.0,0.00013698,2]
[333787962,1722498667346,-1153.95,0.00013698,2]
[333787963,1722498667371,-500.0,0.00013698,2]
[333787964,1722498667395,-500.0,0.00013698,2]
[333787965,1722498667420,-526.29,0.00013698,2]
[333787966,1722498667446,-617.02,0.00013698,2]
[333787967,1722498667470,-514.17,0.00013698,2]
[333787968,1722498667494,-1101.07,0.00013698,2]
[333787969,1722498667517,-963.87,0.00013698,2]
[333787970,1722498667544,-500.0,0.00013698,2]
[333787971,1722498667567,-1452.2,0.00013698,2]
[333787972,1722498667591,-500.0,0.00013698,2]
[333787973,1722498667615,-500.0,0.00013698,2]
[333787974,1722498667640,-500.0,0.00013698,2]
[333787975,1722498667667,-500.0,0.00013698,2]
[333787976,1722498667691,-500.0,0.00013698,2]
[333787977,1722498667714,-500.0,0.00013698,2]
[333787978,1722498667737,-389.7,0.00013698,2]
[333787979,1722498667759,-500.0,0.00013698,2]
[333787980,1722498667783,-3740.59,0.00013698,2]
[333787981,1722498667804,-500.0,0.00013698,2]
[333787982,1722498667827,-500.0,0.00013698,2]
[333787983,1722498667956,-500.0,0.00013698,2]
[333787984,1722498667981,-500.0,0.00013698,2]
[333787985,1722498668004,-637.67,0.00013698,2]
[333787986,1722498668026,-764.4,0.00013698,2]
[333787987,1722498668049,-500.0,0.00013698,2]
[333787988,1722498668073,-632.7,0.00013698,2]
[333787989,1722498668097,-500.0,0.00013698,2]
[333787990,1722498668122,-189.79383717,0.00013698,2]
[333787991,1722498668147,-765.04,0.00013698,2]
[333787992,1722498668174,-4387.62,0.00013698,2]
[333787993,1722498668197,-1051.98,0.00013698,2]
[333787994,1722498668220,-500.0,0.00013698,2]
[333787995,1722498668243,-500.0,0.00013698,2]
[333787996,1722498668267,-500.0,0.00013698,2]
[333787997,1722498668290,-500.0,0.00013698,2]
[333787998,1722498668316,-500.0,0.00013698,2]
[333787999,1722498668340,-500.0,0.00013698,2]
[333788000,1722498668364,-502.89211349,0.00013698,2]
[333788001,1722498668387,-500.0,0.00013698,2]
[333788002,1722498668410,-500.0,0.00013698,2]
[333788003,1722498668433,-500.0,0.00013698,2]
[333788004,1722498668457,-500.0,0.00013698,2]
[333788005,1722498668481,-956.86,0.00013698,2]
[333788006,1722498668503,-542.74,0.00013698,2]
[333788007,1722498668531,-605.0,0.00013698,2]
[333788008,1722498668554,-500.0,0.00013698,2]
[333788009,1722498668578,-500.0,0.00013698,2]
[333788010,1722498668601,-526.08,0.00013698,2]
[333788011,1722498668624,-500.0,0.00013698,2]
[333788012,1722498668646,-500.0,0.00013698,2]
[333788013,1722498668669,-1466.49,0.00013698,2]
[333788014,1722498668698,-805.15,0.00013698,2]
[333788015,1722498668721,-500.0,0.00013698,2]
[333788016,1722498668743,-1033.58,0.00013698,2]
[333788017,1722498668766,-500.0,0.00013698,2]
[333788018,1722498668788,-500.0,0.00013698,2]
[333788019,1722498668811,-2776.7,0.00013698,2]
[333788020,1722498668834,-512.31,0.00013698,2]
[333788021,1722498668857,-802.09,0.00013698,2]
[333788022,1722498668879,-1187.76,0.00013698,2]
[333788023,1722498668902,-500.0,0.00013698,2]
[333788024,1722498668924,-500.0,0.00013698,2]
[333788025,1722498668946,-500.0,0.00013698,2]
[333788026,1722498668969,-527.75,0.00013698,2]
[333788027,1722498668991,-507.16044617,0.00013698,2]
[333788028,1722498669013,-500.0,0.00013698,2]
[333788029,1722498669035,-632.13,0.00013698,2]
[333788030,1722498669058,-587.96,0.00013698,2]
[333788031,1722498669080,-777.62,0.00013698,2]
[333788032,1722498669104,-521.37,0.00013698,2]
[333788033,1722498669128,-500.0,0.00013698,2]
[333788034,1722498669152,-614.98352085,0.00013698,2]
[333788035,1722498669178,-740.01,0.00013698,2]
[333788036,1722498669200,-501.65910497,0.00013698,2]
[333788037,1722498669224,-698.83,0.00013698,2]
[333788038,1722498669248,-500.51088473,0.00013698,2]
[333788039,1722498669272,-555.84,0.00013698,2]
[333788040,1722498669293,-535.30017723,0.00013698,2]
[333788041,1722498669318,-788.29,0.00013698,2]
[333788042,1722498669348,-907.22,0.00013698,2]
[333788043,1722498669370,-662.05,0.00013698,2]
[333788044,1722498669395,-500.0,0.00013698,2]
[333788045,1722498669416,-500.0,0.00013698,2]
[333788046,1722498669439,-1411.23,0.00013698,2]
[333788047,1722498669460,-3605.43,0.00013698,2]
[333788048,1722498669482,-500.0,0.00013698,2]
[333788049,1722498669508,-500.0,0.00013698,2]
[333788050,1722498669532,-500.0,0.00013698,2]
[333788051,1722498669555,-716.67,0.00013698,2]
[333788052,1722498669579,-500.0,0.00013698,2]
[333788053,1722498669602,-594.08,0.00013698,2]
[333788054,1722498669625,-500.0,0.00013698,2]
[333788055,1722498669647,-516.86,0.00013698,2]
[333788056,1722498669671,-500.0,0.00013698,2]
[333788057,1722498669695,-821.66,0.00013698,2]
[333788058,1722498669719,-500.0,0.00013698,2]
[333788059,1722498669741,-165.273471,0.00013699,2]
[333788060,1722498669767,-194.52699436,0.00013699,2]
[333788061,1722498669791,-261.15018643,0.000137,2]
[333788062,1722498669814,-150.112233,0.000137,2]
[333788063,1722498669839,-1021.26,0.00013739,2]
[333788064,1722498669863,-259.38805851,0.00013771,2]
[333788065,1722498669887,-200.0,0.00013776,2]
[333788066,1722498669913,-259.38805851,0.00013862,2]
[333788067,1722498669942,-200.0,0.00013872,2]
[333788068,1722498669972,-2394.97237413,0.000139,2]
[333788069,1722498669999,-44035.00038823,0.00013962,2]
[333788070,1722498690319,500.72,0.000231,120]
[333788118,1722499838019,-176.135239,0.00012986,2]
[333788119,1722499838029,-335.89503145,0.000132,2]
[333788120,1722499838038,-745.28168626,0.00013588,2]
[333788121,1722499838047,-294.15377218,0.0001359,2]
[333788122,1722499838057,-300.0,0.00013596,2]
[333788123,1722499838066,-1290.41,0.00013597,2]
[333788124,1722499838076,-1290.41,0.00013597,2]
[333788125,1722499838085,-2788.57694101,0.00013597,2]
[333788126,1722499838094,-259.38805851,0.00013598,2]
[333788127,1722499838103,-1965.96391196,0.0001366,2]
[333788128,1722499838113,-51231.6502549,0.00013688,2]
[333788129,1722499838122,-1290.41,0.00013697,2]
[333788131,1722499838131,-1290.41,0.00013697,2]
[333788132,1722499838141,-171.95078377,0.00013698,2]
[333788134,1722499838150,-170.12599666,0.00013698,2]
[333788146,1722499838288,-467.56849358,0.00013698,2]
[333788212,1722499840106,-629.93679996,0.00013518,2]
[333788213,1722499840867,-3375.03064132,0.00013518,2]
[333788214,1722499840876,-359.11633968,0.00013652,2]
[333788215,1722499840885,-32.43150642,0.00013698,2]
[333788216,1722499840895,-403.42249436,0.00013698,2]
[333788217,1722499840905,-514.70004176,0.00013698,2]
[333788218,1722499840914,-500.0,0.00013698,2]
[333788219,1722499840923,-500.0,0.00013698,2]
[333788220,1722499840932,-503.89189947,0.00013698,2]
[333788221,1722499840941,-500.0,0.00013698,2]
[333788222,1722499840950,-365.21649624,0.00013698,2]
[333788223,1722499840959,-500.0,0.00013698,2]
[333788224,1722499840968,-500.0,0.00013698,2]
[333788225,1722499840977,-559.14,0.00013698,2]
[333788226,1722499840987,-695.54,0.00013698,2]
[333788227,1722499840996,-503.92339475,0.00013698,2]
[333788228,1722499841005,-523.48,0.00013698,2]
[333788229,1722499841015,-500.0,0.00013698,2]
[333788230,1722499841025,-500.0,0.00013698,2]
[333788231,1722499841035,-575.9,0.00013698,2]
[333788232,1722499841045,-646.66,0.00013698,2]
[333788233,1722499841054,-646.66,0.00013698,2]
[333788234,1722499841064,-646.66,0.00013698,2]
[333788235,1722499841073,-646.66,0.00013698,2]
[333788236,1722499841083,-646.66,0.00013698,2]
[333788237,1722499841094,-646.66,0.00013698,2]
[333788238,1722499841103,-646.66,0.00013698,2]
[333788239,1722499841113,-646.66,0.00013698,2]
[333788240,1722499841122,-646.66,0.00013698,2]
[333788241,1722499841132,-500.0,0.00013698,2]
[333788242,1722499841142,-500.0,0.00013698,2]
[333788243,1722499841152,-500.0,0.00013698,2]
[333788244,1722499841162,-806.76,0.00013698,2]
[333788245,1722499841172,-500.0,0.00013698,2]
[333788246,1722499841181,-500.0,0.00013698,2]
[333788247,1722499841190,-505.87838137,0.00013698,2]
[333788248,1722499841200,-808.99,0.00013698,2]
[333788249,1722499841209,-361.1431352,0.00013698,2]
[333788250,1722499841219,-500.0,0.00013698,2]
[333788251,1722499841229,-500.0,0.00013698,2]
[333788252,1722499841238,-500.0,0.00013698,2]
[333788253,1722499841248,-500.0,0.00013698,2]
[333788254,1722499841258,-637.41,0.00013698,2]
[333788255,1722499841267,-500.0,0.00013698,2]
[333788256,1722499841277,-500.0,0.00013698,2]
[333788257,1722499841287,-573.94,0.00013698,2]
[333788258,1722499841297,-500.0,0.00013698,2]
[333788259,1722499841306,-500.0,0.00013698,2]
[333788260,1722499841315,-1165.94,0.00013698,2]
[333788261,1722499841325,-500.0,0.00013698,2]
[333788262,1722499841335,-500.0,0.00013698,2]
[333788263,1722499841345,-500.0,0.00013698,2]
[333788264,1722499841355,-558.97,0.00013698,2]
[333788265,1722499841364,-500.0,0.00013698,2]
[333788266,1722499841374,-500.0,0.00013698,2]
[333788267,1722499841384,-500.0,0.00013698,2]
[333788268,1722499841394,-500.0,0.00013698,2]
[333788269,1722499841405,-293.89662529,0.00013698,2]
[333788270,1722499841415,-504.04210718,0.00013698,2]
[333788271,1722499841424,-500.0,0.00013698,2]
[333788272,1722499841434,-500.0,0.00013698,2]
[333788273,1722499841443,-500.0,0.00013698,2]
[333788274,1722499841453,-811.86,0.00013698,2]
[333788275,1722499841463,-502.55,0.00013698,2]
[333788276,1722499841473,-3798.58,0.00013698,2]
[333788277,1722499841482,-825.15,0.00013698,2]
[333788278,1722499841492,-1257.05,0.00013698,2]
[333788279,1722499841502,-571.97,0.00013698,2]
[333788280,1722499841511,-518.81,0.00013698,2]
[333788281,1722499841521,-301.13484717,0.00013698,2]
[333788282,1722499841530,-822.98,0.00013698,2]
[333788283,1722499841540,-685.44,0.00013698,2]
[333788284,1722499841550,-500.0,0.00013698,2]
[333788285,1722499841561,-4859.82,0.00013698,2]
[333788286,1722499841570,-500.0,0.00013698,2]
[333788287,1722499841579,-1010.59,0.00013698,2]
[333788288,1722499841588,-500.0,0.00013698,2]
[333788289,1722499841599,-503.3883103,0.00013698,2]
[333788290,1722499841609,-500.0,0.00013698,2]
[333788291,1722499841618,-500.0,0.00013698,2]
[333788292,1722499841628,-503.38878402,0.00013698,2]
[333788293,1722499841638,-500.0,0.00013698,2]
[333788294,1722499841649,-595.38,0.00013698,2]
[333788295,1722499841660,-500.0,0.00013698,2]
[333788296,1722499841669,-1617.69,0.00013698,2]
[333788297,1722499841679,-500.0,0.00013698,2]
[333788298,1722499841688,-500.0,0.00013698,2]
[333788299,1722499841697,-500.0,0.00013698,2]
[333788300,1722499841707,-500.0,0.00013698,2]
[333788301,1722499841716,-500.0,0.00013698,2]
[333788302,1722499841725,-549.7,0.00013698,2]
[333788303,1722499841734,-711.78,0.00013698,2]
[333788304,1722499841743,-1552.03,0.00013698,2]
[333788305,1722499841753,-1229.05,0.00013698,2]
[333788306,1722499841762,-503.94988963,0.00013698,2]
[333788307,1722499841771,-500.0,0.00013698,2]
[333788308,1722499841781,-500.0,0.00013698,2]
[333788309,1722499841790,-4167.13,0.00013698,2]
[333788310,1722499841800,-1491.47,0.00013698,2]
[333788311,1722499841809,-500.0,0.00013698,2]
[333788312,1722499841819,-1284.14,0.00013698,2]
[333788313,1722499841828,-1018.02,0.00013698,2]
[333788314,1722499841838,-500.0,0.00013698,2]
[333788315,1722499841848,-701.25,0.00013698,2]
[333788316,1722499841857,-500.0,0.00013698,2]
[333788317,1722499841866,-500.0,0.00013698,2]
[333788318,1722499841875,-500.0,0.00013698,2]
[333788319,1722499841885,-807.59,0.00013698,2]
[333788320,1722499841894,-500.0,0.00013698,2]
[333788321,1722499841904,-500.0,0.00013698,2]
[333788322,1722499841915,-500.0,0.00013698,2]
[333788323,1722499841925,-2938.67,0.00013698,2]
[333788324,1722499841936,-523.75185787,0.00013698,2]
[333788325,1722499841945,-500.0,0.00013698,2]
[333788326,1722499841954,-500.0,0.00013698,2]
[333788327,1722499841963,-667.04,0.00013698,2]
[333788328,1722499841972,-556.77,0.00013698,2]
[333788329,1722499841981,-500.0,0.00013698,2]
[333788330,1722499841990,-739.6,0.00013698,2]
[333788331,1722499841999,-1088.95,0.00013698,2]
[333788332,1722499842009,-500.0,0.00013698,2]
[333788333,1722499842019,-845.06,0.00013698,2]
[333788334,1722499842111,-558.53,0.00013698,2]
[333788335,1722499842129,-758.48,0.00013698,2]
[333788336,1722499842139,-569.36,0.00013698,2]
[333788337,1722499842148,-617.47,0.00013698,2]
[333788338,1722499842160,-500.0,0.00013698,2]
[333788339,1722499842170,-500.0,0.00013698,2]
[333788340,1722499842179,-783.18,0.00013698,2]
[333788341,1722499842189,-500.0,0.00013698,2]
[333788342,1722499842198,-500.0,0.00013698,2]
[333788343,1722499842208,-500.0,0.00013698,2]
[333788344,1722499842217,-500.0,0.00013698,2]
[333788345,1722499842227,-960.14,0.00013698,2]
[333788346,1722499842236,-791.28,0.00013698,2]
[333788347,1722499842245,-165.2734714,0.00013699,2]
[333788348,1722499842255,-150.112233,0.000137,2]
[333788349,1722499842264,-173.228744,0.000137,2]
[333788350,1722499842274,-51231.6502549,0.00013862,2]
[333788351,1722499842283,-2000.0,0.00013862,2]
[333788352,1722499842294,-32523.13198645,0.00013872,2]
[333788372,1722499843205,-3975.57262652,0.00013872,2]
[333788373,1722499843224,-25837.42261963,0.00013872,2]
[333788374,1722499843240,-646.66,0.00013961,2]
[333788375,1722499843250,-500.0,0.00013961,2]
[333788376,1722499843259,-638.56589332,0.00013961,2]
[333788377,1722499843269,-181.05709508,0.00013961,2]
[333788378,1722499843278,-500.0,0.00013961,2]
[333788379,1722499843287,-500.0,0.00013961,2]
[333788380,1722499843297,-500.0,0.00013961,2]
[333788381,1722499843307,-400.0,0.00013961,2]
[333788382,1722499843317,-500.0,0.00013961,2]
[333788383,1722499843326,-206.90842313,0.00013961,2]
[333788384,1722499843336,-500.0,0.00013961,2]
[333788385,1722499843345,-500.0,0.00013961,2]
[333788386,1722499843354,-500.0,0.00013961,2]
[333788387,1722499843363,-500.0,0.00013961,2]
[333788388,1722499843373,-500.0,0.00013961,2]
[333788389,1722499843383,-500.0,0.00013961,2]
[333788390,1722499843392,-500.0,0.00013961,2]
[333788391,1722499843401,-500.0,0.00013961,2]
[333788392,1722499843411,-500.0,0.00013961,2]
[333788393,1722499843421,-413.39247379,0.00013961,2]
[333788394,1722499843431,-500.0,0.00013961,2]
[333788395,1722499843441,-500.0,0.00013961,2]
[333788396,1722499843450,-475.20449309,0.00013961,2]
[333788397,1722499843460,-500.0,0.00013961,2]
[333788398,1722499843469,-400.0,0.00013961,2]
[333788399,1722499843478,-19868.96198187,0.00013962,2]
[333788400,1722499843505,-420.41154577,0.00013962,2]
[333788408,1722499846380,-500.0,0.00013698,2]
[333788409,1722499846390,-2.3796954,0.00013698,2]
[333788410,1722499846401,-704.8403046,0.00013698,2]
[333788411,1722499846411,-24996.20225143,0.00013962,2]
[333788414,1722500241252,1000.0,0.00023099,120]
[333788461,1722500310098,-15342.0,0.000231,120]
[333788462,1722500310127,-600.0,0.00024,120]
[333788463,1722500310151,-4164.49676877,0.00024,60]
[333788464,1722500310180,-26090.48974848,0.00025,120]
[333788575,1722500538856,724.66352433,0.000249,120]
[333788576,1722500593043,150.5,0.000178,120]
[333788577,1722500593274,2076.0,0.000178,120]
[333788578,1722500593429,150.5,0.000178,120]
[333788579,1722500593523,150.5,0.0001779,120]
[333788580,1722500593736,2076.0,0.0001779,120]
[333788581,1722500593911,150.5,0.0001779,120]
[333788582,1722500593978,150.5,0.0001778,120]
[333788583,1722500594045,150.5,0.000178,120]
[333788584,1722500594188,2076.0,0.0001778,120]
[333788585,1722500594404,254.33,0.0001778,120]
[333788586,1722500594447,150.5,0.0002379,120]
[333788587,1722500594527,150.5,0.0001779,120]
[333788588,1722500594683,2076.0,0.0002379,120]
[333788589,1722500594973,150.5,0.0002378,120]
[333788590,1722500595175,2076.0,0.0002378,120]
[333788591,1722500595321,150.5,0.0001778,120]
[333788592,1722500595478,200.79,0.0002377,120]
[333788593,1722500595670,2076.0,0.0002377,120]
[333788594,1722500595816,150.5,0.0002379,120]
[333788595,1722500596128,2076.0,0.0002489,120]
[333788596,1722500596273,150.5,0.0002378,120]
[333788597,1722500596592,2076.0,0.0002488,120]
[333788598,1722500596741,150.5,0.0002377,120]
[333788599,1722500597211,262.49,0.0002489,120]
[333788600,1722500600343,273.37336231,9.9e-05,2]
[333788601,1722500602805,5656.29925713,0.000249,120]
[333788602,1722500623629,273.37336231,9.9e-05,2]
[333788603,1722500632146,273.37336231,9.9e-05,2]
[333788605,1722500640208,273.37336231,9.9e-05,2]
[333788606,1722500648126,273.37336231,9.9e-05,2]
[333788607,1722500663580,273.37336231,9.9e-05,2]
[333788608,1722500671611,265.00514714,9.9e-05,2]
[333788610,1722500712877,169.0,0.0001789,120]
[333788612,1722500713472,162.0,0.0001789,120]
[333788613,1722500713504,169.0,0.0001788,120]
[333788615,1722500713853,169.0,0.0001787,120]
[333788616,1722500713898,162.0,0.0001788,120]
[333788617,1722500714337,169.0,0.0002379,120]
[333788619,1722500714416,162.0,0.0001787,120]
[333788620,1722500715160,169.0,0.0002378,120]
[333788621,1722500715638,169.0,0.0002377,120]
[333788622,1722500715892,162.0,0.0002379,120]
[333788623,1722500716628,2067.0,0.0001789,120]
[333788624,1722500716707,169.0,0.0002489,120]
[333788625,1722500717056,162.0,0.0002378,120]
[333788626,1722500717099,2067.0,0.0001788,120]
[333788627,1722500717171,169.0,0.0002488,120]
[333788628,1722500717522,162.0,0.0002377,120]
[333788629,1722500717574,2067.0,0.0001787,120]
[333788630,1722500717982,162.0,0.0002489,120]
[333788631,1722500718134,2067.0,0.0002379,120]
[333788632,1722500718440,162.0,0.0002488,120]
[333788633,1722500718603,2067.0,0.0002378,120]
[333788634,1722500719160,2067.0,0.0002377,120]
[333788635,1722500719636,2067.0,0.0002489,120]
[333788636,1722500720101,2067.0,0.0002488,120]
[333788638,1722500732354,244.74168763,9.999e-05,2]
[333788640,1722500744017,155.40387931,9.999e-05,2]
[333788642,1722500759235,461.06282495,9.999e-05,2]
[333788643,1722500762706,182.9976024,9.999e-05,2]
[333788645,1722500771221,157.15349152,9.999e-05,2]
[333788646,1722500776205,200.0,9.999e-05,2]
[333788647,1722500784489,273.37336231,9.9e-05,2]
[333788648,1722500789613,185.72728579,9.999e-05,2]
[333788649,1722500791230,282.35610157,9.999e-05,2]
[333788650,1722500792445,273.37336231,9.9e-05,2]
[333788651,1722500800744,222.91811574,9.9e-05,2]
[333788652,1722500810051,2107.28053433,9.999e-05,2]
[333788653,1722500822099,218.23037089,9.999e-05,2]
[333788654,1722500829388,233.0916429,9.999e-05,2]
[333788659,1722500834563,413.0,0.000178,120]
[333788661,1722500835286,413.0,0.0001779,120]
[333788663,1722500835908,413.0,0.0001778,120]
[333788665,1722500836252,413.0,0.0002369,120]
[333788667,1722500836736,413.0,0.0002368,120]
[333788669,1722500837220,413.0,0.0002367,120]
[333788671,1722500837741,413.0,0.0002489,120]
[333788672,1722500838253,413.0,0.0002488,120]
[333788673,1722500839731,12428.57945252,9.999e-05,2]
[333788674,1722500840477,161.42051397,9.999e-05,2]
[333788676,1722500880373,224.93551317,9.999e-05,2]
[333788679,1722500889263,196.35129401,9.999e-05,2]
[333788688,1722500911756,1575.61014769,0.0002,120]
[333788690,1722500925925,201.03081594,0.0002525,120]
[333788692,1722500926560,4940.84616352,0.0002,120]
[333788693,1722500927127,794.02048447,9.999e-05,2]
[333788694,1722500927375,764.55589968,0.00023,120]
[333788695,1722500929415,611.65028361,0.00025,120]
[333788696,1722500930567,3999.97047467,0.00025,120]
[333788697,1722500930840,221.71360369,0.000245,120]
[333788698,1722500941455,4571.87458108,9.999e-05,2]
[333788699,1722500943430,154.80649189,9.999e-05,2]
[333788700,1722500950397,154.94378216,9.999e-05,2]
[333788701,1722500951011,13996.08887813,9.999e-05,2]
[333788702,1722500954292,150.5,0.000178,120]
[333788703,1722500954855,150.5,0.0001779,120]
[333788704,1722500955057,150.5,0.000178,120]
[333788705,1722500955335,150.5,0.0001778,120]
[333788706,1722500955374,150.5,0.000178,120]
[333788707,1722500955506,150.5,0.0001779,120]
[333788708,1722500955806,150.5,0.0002369,120]
[333788709,1722500955836,150.5,0.0001779,120]
[333788710,1722500955996,150.5,0.0001778,120]
[333788711,1722500956260,150.5,0.0002368,120]
[333788712,1722500956296,150.5,0.0001778,120]
[333788713,1722500956542,150.5,0.0002369,120]
[333788714,1722500956752,150.5,0.0002369,120]
[333788715,1722500956783,150.5,0.0002367,120]
[333788716,1722500957010,233.81,0.0002368,120]
[333788717,1722500957223,176.56,0.0002489,120]
[333788718,1722500957373,150.5,0.0002368,120]
[333788719,1722500957797,288.81,0.0002367,120]
[333788720,1722500961651,1626.2994868,9.999e-05,2]
[333788721,1722500964384,2084.83844091,9.999e-05,2]
[333788722,1722500964406,1697.75911354,9.999e-05,2]
[333788726,1722500979904,290.31500293,9.999e-05,2]
[333788761,1722501032202,-273.56494237,0.0001212,2]
[333788763,1722501032211,-166.00005763,0.00012122,2]
[333788765,1722501032223,-108.30904697,0.00012122,2]
[333788767,1722501032232,-166.494912,0.00012268,2]
[333788769,1722501032242,-166.494912,0.00012374,2]
[333788771,1722501032253,-166.494912,0.00012481,2]
[333788773,1722501032262,-166.494912,0.00012587,2]
[333788776,1722501032271,-166.494912,0.00012694,2]
[333788778,1722501032281,-166.494912,0.000128,2]
[333788781,1722501032291,-166.494912,0.00012907,2]
[333788784,1722501032302,-179.544491,0.00012986,2]
[333788787,1722501032312,-575.58160568,0.00013,2]
[333788791,1722501032324,-1748.39554088,0.00013,2]
[333788795,1722501032337,-256.41739393,0.00013,2]
[333788798,1722501032346,-53.58260607,0.00013151,2]
[333788801,1722501032357,-99.41739393,0.00013151,2]
[333788803,1722501032368,-413.5429716,0.00013178,2]
[333788805,1722501032377,-153.0,0.00013425,2]
[333788807,1722501032386,-153.0,0.00013425,2]
[333788809,1722501032395,-536.6538952,0.00013425,2]
[333788811,1722501032405,-153.0,0.00013425,2]
[333788812,1722501032414,-794.50364796,0.00013432,2]
[333788814,1722501032426,-4517.12691788,0.00013432,2]
[333788816,1722501032436,-367.7699373,0.00013444,2]
[333788817,1722501032445,-300.0,0.00013482,2]
[333788819,1722501032456,-4.67156811,0.00013588,2]
[333788820,1722501032468,-2618.76359491,0.00013588,2]
[333788821,1722501032479,-1957.64580646,0.000136,2]
[333788822,1722501032490,-1831.59658946,0.00013686,2]
[333788841,1722501039083,-11210.26343667,0.00013686,2]
[333788842,1722501039094,-6258.95,0.00013687,2]
[333788843,1722501039103,-28978.46213378,0.00013688,2]
[333788844,1722501039115,-101082.61972,0.00013688,2]
[333788845,1722501039125,-6258.95,0.00013696,2]
[333788846,1722501039135,-6258.95,0.00013697,2]
[333788847,1722501039145,-6258.95,0.00013697,2]
[333788848,1722501039155,-500.0,0.00013698,2]
[333788849,1722501039164,-500.0,0.00013698,2]
[333788850,1722501039174,-500.0,0.00013698,2]
[333788851,1722501039184,-500.0,0.00013698,2]
[333788852,1722501039194,-546.47480144,0.00013698,2]
[333788853,1722501039204,-503.37684485,0.00013698,2]
[333788854,1722501039213,-500.0,0.00013698,2]
[333788855,1722501039224,-500.0,0.00013698,2]
[333788856,1722501039235,-500.0,0.00013698,2]
[333788857,1722501039244,-500.0,0.00013698,2]
[333788858,1722501039254,-500.0,0.00013698,2]
[333788859,1722501039265,-500.0,0.00013698,2]
[333788860,1722501039277,-548.30572246,0.00013698,2]
[333788866,1722501040301,-21.2152599,0.00013698,2]
[333788867,1722501040311,-516.56378217,0.00013698,2]
[333788868,1722501040322,-500.0,0.00013698,2]
[333788869,1722501040332,-535.68,0.00013698,2]
[333788870,1722501040342,-500.0,0.00013698,2]
[333788871,1722501040352,-500.0,0.00013698,2]
[333788872,1722501040365,-617.47,0.00013698,2]
[333788873,1722501040374,-500.0,0.00013698,2]
[333788875,1722501040384,-500.0,0.00013698,2]
[333788877,1722501040394,-505.33346437,0.00013698,2]
[333788879,1722501040404,-500.0,0.00013698,2]
[333788880,1722501040413,-502.69746261,0.00013698,2]
[333788881,1722501040426,-8.05732178,0.00013698,2]
[333788882,1722501040441,-765.09267822,0.00013698,2]
[333788883,1722501040453,-501.67,0.00013698,2]
[333788884,1722501040463,-500.0,0.00013698,2]